Cogmind - Beta 14 @@@ ROGUE MODE // 2025.01.16 @ 23:15:07 Player: Blanco! Result: Destroyed by as-34436 with Assembled Rifle Performance ------------- Evolutions (0) 0 Regions Visited (2) 400 Robots Destroyed (4) 20 Value Destroyed (70) 70 Prototype IDs (1) 20 Alien Tech Used (0) 0 Bonus (0) 0 TOTAL SCORE: 510 Bonus ------- None Cogmind --------- Core Integrity 0/250 Matter 300/300 Energy 125/125 System Corruption 0% Temperature Cool (0) Movement Rolling (90) Location -10/Mines Parts ------- > --- POWER (1) -------- Light Ion Engine > --- PROPULSION (2) --- Wheel Compact Wheel > --- UTILITY (2) ------ Large Storage Unit Visual Processing Unit > --- WEAPON (2) ------- (None) > --- INVENTORY (15) --- Light Ion Engine Improved Ion Engine Aluminum Leg Peak State ------------ > --- POWER ------------ Light Ion Engine > --- PROPULSION ------- Aluminum Leg Aluminum Leg > --- UTILITY ---------- Small Storage Unit Visual Processing Unit > --- WEAPON ----------- Improved EM Shotgun Improved EM Shotgun > --- INVENTORY -------- Light Ion Engine Light Ion Engine Improved Ion Engine Light Treads Light Treads Wheel Compact Wheel Improved EM Shotgun [Rating: 13] Favorites ----------- Power Light Ion Engine Engine Light Ion Engine Propulsion Aluminum Leg Treads Light Treads Leg Aluminum Leg Wheel Wheel Utility Visual Processing Unit Storage Large Storage Unit Processor Visual Processing Unit Weapon Improved EM Shotgun Energy Gun Improved EM Shotgun Launcher Grenade Launcher Build | -11 -10 -10 ------- Run | Yrd Mat Min Slots Evolved . | . . . Power . | . . . Propulsion . | . . . Utility . | . . . Weapon . | . . . Parts Attached 17 | 6 4 7 Power 2 | 1 . 1 Engine 2 | 1 . 1 Core . | . . . Reactor . | . . . Propulsion 6 | 2 . 4 Treads 2 | . . 2 Leg 2 | 2 . . Wheel 2 | . . 2 Hover . | . . . Flight . | . . . Utility 3 | 1 2 . Device . | . . . Storage 2 | 1 1 . Processor 1 | . 1 . Hackware . | . . . Protection . | . . . Artifact . | . . . Weapon 6 | 2 2 2 Energy Gun 5 | 2 2 1 Energy Cannon . | . . . Ballistic Gun . | . . . Ballistic Cannon . | . . . Launcher 1 | . . 1 Special Weapon . | . . . Impact Weapon . | . . . Slashing Weapon . | . . . Piercing Weapon . | . . . Special Melee Weapon . | . . . Unidentified Prototypes 1 | . 1 . Parts Lost 9 | . 1 8 Power 1 | . . 1 Propulsion 3 | . . 3 Utility . | . . . Weapon 5 | . 1 4 Highest Loss Streak 5 | . 1 5 To Critical Strikes . | . . . Average Slot Usage (%) 94 | . 95 94 Engine 14 | . 14 14 Treads 6 | . . 10 Leg 18 | . 28 14 Wheel 2 | . . 3 Storage 14 | . 14 14 Processor 12 | . 9 14 Energy Gun 21 | . 28 17 Launcher 3 | . . 5 Peak Build Rating 13 | 6 13 13 Average Rating 9 | 4 9 10 On Entrance 6 | . 6 13 Naked Turns . | . . . Heaviest Build 29 | 12 29 29 Greatest Support 40 | 20 20 40 Greatest Overweight (x) 2 | . 1 2 Average Overweight (x) . | . . . Largest Inventory Capacity 15 | 8 15 15 Average Capacity 12 | 6 10 15 Most Carried 9 | 6 8 9 Average Carried 6 | 4 7 6 Final Capacity 15 | 8 15 15 Final Carried 8 | 6 8 3 Class Distribution -------------------- 100% | Mutant Dominant Class ---------------- Mutant | -10/Materials Mutant | -10/Mines Resources | -11 -10 -10 ----------- Run | Yrd Mat Min Matter Collected 384 | 258 52 74 Remotely . | . . . Salvage Created 232 | . 118 114 Parts 11 | . 11 . Haulers Intercepted . | . . . Recyclers Shooed . | . . . Parts Field Recycled . | . . . Retrieved Matter . | . . . Parts Self-Destructed . | . . . Prevented . | . . . Kills | -11 -10 -10 ------- Run | Yrd Mat Min Combat Hostiles Destroyed 10 | . 3 7 Guns 8 | . 3 5 AOE 2 | . . 2 Classes Destroyed 4 | . 3 1 Watcher 1 | . 1 . Swarmer 2 | . 2 . Grunt 1 | . 1 . Assembled 7 | . . 7 Best Kill Streak 5 | . 2 5 Combat Bots Only 5 | . 2 5 Max Kills in Single Turn 2 | . 2 1 Gunslinging 1 | . 1 . Exploded 1 | . . 1 Melee . | . . . Uniques/NPCs Destroyed . | . . . Combat | -11 -10 -10 -------- Run | Yrd Mat Min Hostile Shots Fired 70 | . 10 60 Missed 20 | . 2 18 Damage Taken 1111 | . 69 1042 Core 254 | . 6 248 Absorbed by Shields . | . . . Core Remaining (%) 100 | 100 . . Volleys Fired 21 | . 7 14 Largest 2 | . 2 2 Hottest 90 | . 90 90 Shots Fired 42 | . 14 28 Gun 40 | . 14 26 Cannon . | . . . Launcher 2 | . . 2 Special . | . . . Kinetic . | . . . Thermal 2 | . 2 . Explosive 2 | . . 2 Electromagnetic 38 | . 12 26 Robot Hit Streak 5 | . 5 5 Robot Miss Streak 6 | . 6 6 Penetration Max . | . . . Secondary Targets 1 | . 1 . Max Gunslinging Chain 1 | . 1 . Shots Hit Robots 26 | . 5 21 Core Hits 23 | . 5 18 Critical Kills . | . . . Critical Parts Destroyed . | . . . Critical Strikes . | . . . Melee Attacks . | . . . Impact . | . . . Slashing . | . . . Piercing . | . . . Sneak Attacks . | . . . Combat Hostiles . | . . . Follow-up Attacks . | . . . Damage Inflicted 447 | . 78 369 Guns 309 | . 78 231 Cannons . | . . . Explosions 109 | . . 109 Melee . | . . . Ramming 29 | . . 29 Kinetic . | . . . Thermal . | . . . Explosive 109 | . . 109 Electromagnetic 309 | . 78 231 Impact . | . . . Slashing . | . . . Piercing . | . . . Highest Corruption . | . . . Average Corruption . | . . . Corruption Purged . | . . . Corruption Blocked . | . . . Overload Shots . | . . . Overflow Damage . | . . . Projectiles . | . . . Explosions . | . . . Melee . | . . . Knockbacks . | . . . Impact . | . . . Kinetic . | . . . Secondary . | . . . Self-Inflicted Damage 14 | . . 14 Shots . | . . . Rammed 2 | . . 2 Targets Rammed 2 | . . 2 Kicked . | . . . Crushed . | . . . Highest Temperature 290 | . 66 290 Average Temperature 88 | . 28 115 Received Heat Transfer 204 | . 18 186 Siege Activations . | . . . Robots Corrupted . | . . . Combat Hostiles . | . . . Parts Fried . | . . . Impact Corruptions . | . . . Robots Melted . | . . . Combat Hostiles . | . . . Parts Melted . | . . . Heat Transferred . | . . . Parts Sabotaged . | . . . Parts Stolen . | . . . Parts Stripped . | . . . Power Chain Reactions . | . . . Alert | -11 -10 -10 ------- Run | Yrd Mat Min Peak Influence 70 | . 70 27 Initial 27 | . . 27 Average 11 | . 14 13 Maximum Alert Level . | . . . Low Security (%) 100 | 100 100 100 Level 1 . | . . . Level 2 . | . . . Level 3 . | . . . Level 4 . | . . . Level 5 . | . . . High Security . | . . . Max Security . | . . . Squads Dispatched 1 | . 1 . Investigation . | . . . Extermination . | . . . Reinforcement 1 | . 1 . Assault . | . . . Garrison . | . . . Intercept . | . . . Searches Triggered . | . . . Construction Impeded . | . . . Haulers Reinforced . | . . . Active Scanning Responses . | . . . Cargo Convoy Interrupts . | . . . Stealth | -11 -10 -10 --------- Run | Yrd Mat Min Distress Signals 2 | . 1 1 Communications Jammed . | . . . Distress Signals . | . . . Times Spotted 16 | . 6 10 Peak Tracking Total 4 | . 3 4 Tactical Retreats 1 | . . 1 Traps | -11 -10 -10 ------- Run | Yrd Mat Min Traps Triggered . | . . . Indirectly . | . . . Trap Hack Attempts . | . . . Triggered . | . . . Disarmed . | . . . Reprogrammed . | . . . Reused . | . . . Traps Extracted . | . . . Installed . | . . . Triggered . | . . . Machines | -11 -10 -10 ---------- Run | Yrd Mat Min Machines Disabled . | . . . Max in Single Turn . | . . . Machines Repaired . | . . . Machines Dismantled . | . . . Machines Sabotaged . | . . . Overloaded Fab Kills . | . . . Hacking | -11 -10 -10 --------- Run | Yrd Mat Min Machines Accessed . | . . . Terminals . | . . . Fabricators . | . . . Repair Stations . | . . . Recycling Units . | . . . Scanalyzers . | . . . Garrison Access . | . . . Total Hacks . | . . . Successful . | . . . Failed . | . . . Catastrophic . | . . . Database Lockouts . | . . . Manual . | . . . Terminals . | . . . Fabricators . | . . . Repair Stations . | . . . Recycling Units . | . . . Scanalyzers . | . . . Garrison Access . | . . . Terminal Hacks . | . . . Fabricator Hacks . | . . . Repair Station Hacks . | . . . Recycling Unit Hacks . | . . . Scanalyzer . | . . . Garrison Access Hacks . | . . . Unauthorized Hacks . | . . . Terminals . | . . . Fabricators . | . . . Repair Stations . | . . . Recycling Units . | . . . Scanalyzers . | . . . Garrison Access . | . . . Data Cores Recovered . | . . . Used . | . . . Hacking Detections . | . . . Full Trace Events . | . . . Feedback Events . | . . . Feedback Blocked . | . . . Robot Schematics Acquired . | . . . Robots Built . | . . . Authchips . | . . . Time . | . . . Total Robot Build Rating . | . . . Part Schematics Acquired . | . . . Parts Built . | . . . Authchips . | . . . Time . | . . . Total Part Build Rating . | . . . Parts Repaired . | . . . Time . | . . . Parts Recycled . | . . . Recycled Matter . | . . . Retrieved Matter . | . . . Retrieved Components . | . . . Parts Scanalyzed . | . . . Part Schematics Acquired . | . . . Parts Damaged . | . . . Bothacking | -11 -10 -10 ------------ Run | Yrd Mat Min Used RIF Installer . | . . . Robots Hacked . | . . . Non-combat . | . . . Combat . | . . . Robot Hacks Applied . | . . . Relay Couplers Released . | . . . Fabnet Peak Effective % . | . . . Robots Rewired . | . . . Allies Hacked . | . . . Hacks Repelled . | . . . Allies | -11 -10 -10 -------- Run | Yrd Mat Min Total Allies 3 | . . 3 Largest Group 3 | . . 3 Highest-Rated Group 40 | . . 40 Highest-Rated Ally 16 | . . 16 Total Orders . | . . . Ally Attacks 17 | . . 17 Total Damage 123 | . . 123 Kills 1 | . . 1 Allies Corrupted 1 | . . 1 Allies Melted 1 | . . 1 Intel | -11 -10 -10 ------- Run | Yrd Mat Min Robot Analysis Total . | . . . Derelict Logs Recovered . | . . . Drone Launches . | . . . Drone Recoveries . | . . . Exploration | -11 -10 -10 ------------- Run | Yrd Mat Min Turns Passed 645 | 84 188 373 Spaces Moved 374 | 60 112 202 Core 7 | 7 . . Treads 80 | . . 80 Legs 243 | 53 112 78 Wheels 44 | . . 44 Hover . | . . . Flight . | . . . Fastest Speed 50 | 50 120 90 Average Speed 144 | 111 138 157 Slowest Speed 260 | 120 190 260 Overloaded Moves . | . . . Propulsion Burnouts . | . . . Robots Hopped . | . . . Cave-ins Triggered . | . . . Exploration Rate (%) 22 | 6 21 39 Regions Visited 2 Branch Regions 1 Pre-discovered Areas . | . . . Known Exits Taken . | . . . Unknown Exits Taken 2 | 1 1 . Scrap Searched . | . . . Spaces Dug . | . . . Terrain Destroyed 18 | . . 18 Melee . | . . . Projectile . | . . . AOE 18 | . . 18 Terrain Rammed . | . . . Walls Destroyed . | . . . Machines Disabled . | . . . Actions | -11 -10 -10 --------- Run | Yrd Mat Min Total 438 | 77 133 228 Wait . | . . . Move 372 | 59 111 202 Hop . | . . . Pick Up 20 | 12 6 2 Fast Attach 1 | . 1 . Attach 13 | 6 1 6 Detach . | . . . Swap 4 | . 3 1 Drop 5 | . 4 1 Fire 21 | . 7 14 Melee . | . . . Ram 2 | . . 2 Kick . | . . . Crush . | . . . Escape Stasis . | . . . Rewire . | . . . Trap . | . . . Miscellaneous . | . . . Route ------- -11/Scrapyard -10/Materials -10/Mines History --------- Turn | Location | Event 6 | -11/Scrapyard | Discovered new exit (range 15) 85 | -11/Scrapyard | Entered Materials 204 | -10/Materials | Discovered new exit (range 16) 273 | -10/Materials | Entered Mines 274 | -10/Mines | Assembled infested the area 274 | -10/Mines | YI-UF0 nonchalantly dropped a Grenade Launcher on the ground 302 | -10/Mines | Build established: Mutant 305 | -10/Mines | Assisted by bots powering up and referring to "LRC-V3" 422 | -10/Mines | Lost 3 allies 481 | -10/Mines | Lost 3 parts (1n2w) 576 | -10/Mines | Core integrity fell below 50% 605 | -10/Mines | Core integrity fell below 20% 633 | -10/Mines | Lost 5 parts (1p2n2w) 646 | -10/Mines | Destroyed by as-34436 with Assembled Rifle Last Messages --------------- 00453_ as-38866 destroyed. 00456_ The unstable cave ceiling collapses. 00456_ as-31424 destroyed. 00464_ Acquired 20 matter. 00472_ Dropped Aluminum Leg. 00474_ R-06 Scavenger collects Aluminum Leg. 00479_ Acquired 20 matter. 00483_ R-06 Scavenger collects Aluminum Leg. 00485_ Acquired Corrupted Aluminum Leg. 00509_ The unstable cave ceiling collapses. 00565_ Lgt. Ion Engine destroyed. 00568_ The unstable cave ceiling collapses. 00575_ Imp. EM Shotgun destroyed. 00579_ The unstable cave ceiling collapses. 00599_ Grenade Launcher destroyed. 00600_ The unstable cave ceiling collapses. 00602_ Lgt. Treads destroyed. 00604_ The unstable cave ceiling collapses. 00622_ Slammed into R-06 Scavenger. 00626_ Acquired 14 matter. Map ----- +----------------------------------------------------+ | ??????????????????????????????????????? | | ??????????????????????????????????????? | | ??????????????????????????????????????? | | ??????????????????????????????????##??? | | ?????????????????????????????????? ??? | | ?????????????????????????????????? ??? | | ??????????????????????????????????# ??? | | ??????????????????????????????????# ??? | | ?????????????????????????????????## ??? | | ?????????????????????????????????# ### | | ????????????????????????????????? # | | ????????????????????????????????? | | ????????????????????????????????### | | ???????????########?????????????# # | | ???????????# #?????????????## %# | | ???????????# #??????????????## | | ???????????# """ #???????????????# | | ???????????# """ #?############### | | ???????????# """ ??# % % | | ???????????? ???# ############# | | ?????????????# ##### #??????????## | | ?????????????# ## # ###??????### # | | ?????????????# # a #?????## ## | | ?????????????# #?????# #? | | ????????????## % #?????# ## | | ????????????# @ ##?????# # | | ????????????# ## ##?????## | | ????????? ### #??????# | | ????????# #?# ##??????# # | | ????????##### ##?# ##??????# | | ????????????#####??# ##?????# | | ????????????#####?## #????### # | | ????????????# ### #???? ## # | | ????????????# # ##??? | | ????????????# ##???# # | | ????????????# ##?### ## | | ????????????# #### ### | | ????????????# ## | | ????????????# ### | | ????????????# #### ###?# | | ????????????## #??####???# | | ?????????????## #?????????# | | ??????????????## ##?????????## | | ???????????????# #?????????## | | ???????????????# ##?????????# # | | ???????????????# ##??????????## | | ???????????????# #????????????## | | ??????????????? #????????????# | | ?????????????? ##????????????# ## | | ?????????????? #?????????????# # | +----------------------------------------------------+ Best States ------------- Heat Dissipation 25 Energy Generation 10 Energy Capacity 125 Matter Stores 300 Matter Capacity 300 Sight Range 18 Terrain Scan Density 10 Evasion (%) 55 Recoil Reduction 2 Item Schematics ----------------- None Robot Schematics ------------------ None Fabricated ------------ Nothing Alien Tech Used ----------------- None Achievements -------------- None Challenges ------------ None Game ------ Seed ActiveAbsorptionGenerator Manual? 0 Play Time 00:10:59 Cumulative 11.6 hours Start 2025.01.16 @ 23:05:27 End 2025.01.16 @ 23:15:07 Sessions 1 Manual Loads 0 Difficulty Rogue Special Mode None Game No. 17 Rogue 17 Adventurer 0 Explorer 0 Win Type - Total 0 Types 0/0/0/0/0/0/0/0/0 Lore% 5 Gallery% 14 Achievement% 13 Wizard Run 0 Options --------- Layout 0 ASCII 0 Keyboard 0 Movement Arrows Keybinds 0 Fullscreen 2 Font 18/SmallcapsGlow Map View 38x25 Zoom Use 98% Tactical HUD 1 Map Filters NONE Filters NONE Steam 1 RUN: 9ccbe1d4-8707-4415-a619-62119631fef9